Cogmind - Beta 15 @@@ ROGUE MODE // 2025.08.07 @ 19:23:06 Player: Zoe Result: Destroyed by G-47 Trooper with Particle Gun Performance ------------- Evolutions (2) 1000 Regions Visited (3) 600 Robots Destroyed (17) 85 Value Destroyed (417) 417 Prototype IDs (1) 20 Alien Tech Used (0) 0 Bonus (0) 0 TOTAL SCORE: 2122 Bonus ------- None Cogmind --------- Core Integrity 0/550 Matter 285/300 Energy 52/100 System Corruption 0% Temperature Cool (27) Movement Core (150) Ox2 Location -8/Materials Parts ------- > --- POWER (1) -------- (None) > --- PROPULSION (3) --- (None) > --- UTILITY (4) ------ Small Storage Unit > --- WEAPON (3) ------- Beam Rifle > --- INVENTORY (8) ---- Light Ion Engine Aluminum Leg Aluminum Leg Faulty Improved EM Shotgun Mining Laser Peak State ------------ > --- POWER ------------ Ion Engine > --- PROPULSION ------- Light Treads Light Treads > --- UTILITY ---------- Small Storage Unit Improved Terrain Scanner Seismic Detector > --- WEAPON ----------- EM Pulse Gun Assault Rifle Light Assault Rifle > --- INVENTORY -------- Light Ion Engine Aluminum Leg Aluminum Leg Grenade Launcher Mining Laser [Rating: 11] Favorites ----------- Power Ion Engine Engine Ion Engine Propulsion Light Treads Treads Light Treads Utility Small Storage Unit Device Seismic Detector Storage Small Storage Unit Weapon Assault Rifle Energy Gun EM Pulse Gun Ballistic Gun Assault Rifle Launcher Grenade Launcher Special Weapon Mining Laser Build | -11 -10 -10 -8 ------- Run | Yrd Mat Sub Mat Slots Evolved 4 | . . . 4 Power . | . . . . Propulsion 1 | . . . 1 Utility 2 | . . . 2 Weapon 1 | . . . 1 Parts Attached 15 | 8 2 . 5 Power 2 | 2 . . . Engine 2 | 2 . . . Core . | . . . . Reactor . | . . . . Propulsion 2 | 2 . . . Treads 2 | 2 . . . Leg . | . . . . Wheel . | . . . . Hover . | . . . . Flight . | . . . . Utility 3 | 2 1 . . Device 2 | 1 1 . . Storage 1 | 1 . . . Processor . | . . . . Hackware . | . . . . Protection . | . . . . Artifact . | . . . . Weapon 8 | 2 1 . 5 Energy Gun 4 | . . . 4 Energy Cannon . | . . . . Ballistic Gun 2 | 2 . . . Ballistic Cannon . | . . . . Launcher 1 | . . . 1 Special Weapon 1 | . 1 . . Impact Weapon . | . . . . Slashing Weapon . | . . . . Piercing Weapon . | . . . . Special Melee Weapon . | . . . . Unidentified Prototypes 1 | . . . 1 Parts Lost 11 | . . . 11 Power 1 | . . . 1 Propulsion 2 | . . . 2 Utility 2 | . . . 2 Weapon 6 | . . . 6 Highest Loss Streak 9 | . . . 9 To Critical Strikes . | . . . . Average Backups 5 | 3 6 7 5 Power . | . 1 1 1 Propulsion 1 | 1 2 2 2 Utility . | . 1 1 . Weapon 2 | . 2 3 2 Tool/Special . | . . . . Unused Backups 2 | . . . 2 Power . | . . . . Propulsion 2 | . . . 2 Utility . | . . . . Weapon . | . . . . Tool/Special . | . . . . Average Slot Usage (%) 89 | . 100 100 62 Engine 12 | . 14 14 7 Treads 23 | . 28 28 12 Device 14 | . 14 14 16 Storage 12 | . 14 14 9 Ballistic Gun 23 | . 26 28 15 Peak Build Rating 11 | 7 9 7 11 Average Rating 7 | 5 8 7 8 On Entrance 5 | . 7 7 7 Naked Turns . | . . . . Heaviest Build 17 | 14 14 14 17 Greatest Support 40 | 40 40 40 40 Greatest Overweight (x) 2 | . . . 2 Average Overweight (x) . | . . . . Largest Inventory Capacity 8 | 8 8 8 8 Average Capacity 7 | 7 8 8 8 Most Carried 7 | 6 7 7 6 Average Carried 5 | 4 6 7 5 Final Capacity 8 | 8 8 8 8 Final Carried 7 | 6 7 7 5 Class Distribution -------------------- 97% | Mutant Dominant Class ---------------- Mutant | -10/Materials Mutant | -10/Subcaves Mutant | -8/Materials Resources | -11 -10 -10 -8 ----------- Run | Yrd Mat Sub Mat Matter Collected 541 | 356 . . 185 Remotely . | . . . . Salvage Created 705 | 203 . . 502 Parts 42 | 19 . . 23 Haulers Intercepted 1 | . . . 1 Recyclers Shooed . | . . . . Parts Field Recycled . | . . . . Retrieved Matter . | . . . . Parts Self-Destructed . | . . . . Prevented . | . . . . Kills | -11 -10 -10 -8 ------- Run | Yrd Mat Sub Mat Combat Hostiles Destroyed 8 | . . . 8 Guns 6 | . . . 6 AOE 2 | . . . 2 Classes Destroyed 7 | 2 . . 5 Builder 1 | . . . 1 Tunneler 5 | 5 . . . Hauler 1 | . . . 1 Recycler 2 | 1 . . 1 Grunt 6 | . . . 6 Brawler 1 | . . . 1 Sentry 1 | . . . 1 Best Kill Streak 5 | 3 . . 5 Combat Bots Only 3 | . . . 3 Max Kills in Single Turn 2 | 1 . . 2 Gunslinging . | . . . . Exploded 1 | . . . 1 Melee . | . . . . Uniques/NPCs Destroyed . | . . . . Combat | -11 -10 -10 -8 -------- Run | Yrd Mat Sub Mat Hostile Shots Fired 125 | . . 4 121 Missed 35 | . . 1 34 Hits 90 | . . 3 87 Melee 1 | . . . 1 Projectile 89 | . . 3 86 Critical Strikes 5 | . . 1 4 Damage Taken 1488 | . . 79 1409 Core 550 | . . . 550 Absorbed by Shields . | . . . . Core Remaining (%) 100 | 100 . 100 . Volleys Fired 61 | 19 8 . 34 Largest 3 | 2 2 . 3 Hottest 100 | 40 100 . 80 Shots Fired 116 | 38 10 . 68 Gun 109 | 38 4 . 67 Cannon . | . . . . Launcher 1 | . . . 1 Special 6 | . 6 . . Kinetic 95 | 38 4 . 53 Thermal 9 | . 6 . 3 Explosive 1 | . . . 1 Electromagnetic 11 | . . . 11 Robot Hit Streak 10 | 8 10 . 10 Robot Miss Streak 4 | 3 1 . 4 Penetration Max . | . . . . Secondary Targets 1 | . . . 1 Max Gunslinging Chain 1 | . . . 1 Shots Hit Robots 76 | 21 3 . 52 Core Hits 36 | 10 1 . 25 Critical Kills . | . . . . Critical Parts Destroyed 1 | 1 . . . Critical Strikes 1 | 1 . . . Destroy 1 | 1 . . . Melee Attacks . | . . . . Impact . | . . . . Slashing . | . . . . Piercing . | . . . . Sneak Attacks . | . . . . Combat Hostiles . | . . . . Follow-up Attacks . | . . . . Damage Inflicted 1274 | 207 25 . 1042 Guns 858 | 207 25 . 626 Cannons . | . . . . Explosions 416 | . . . 416 Melee . | . . . . Ramming . | . . . . Kinetic 697 | 207 25 . 465 Thermal 311 | . . . 311 Explosive 120 | . . . 120 Electromagnetic 146 | . . . 146 Impact . | . . . . Slashing . | . . . . Piercing . | . . . . Highest Corruption . | . . . . Average Corruption . | . . . . Corruption Purged . | . . . . Corruption Blocked . | . . . . Overload Shots . | . . . . Overflow Damage . | . . . . Projectiles . | . . . . Explosions . | . . . . Melee . | . . . . Knockbacks . | . . . . Impact . | . . . . Kinetic . | . . . . Secondary . | . . . . Self-Inflicted Damage 69 | . . . 69 Shots 2 | . . . 2 Rammed . | . . . . Targets Rammed . | . . . . Kicked . | . . . . Crushed . | . . . . Highest Temperature 57 | . 22 . 57 Average Temperature 15 | . 11 . 18 Received Heat Transfer 807 | . . 24 783 Siege Activations . | . . . . Martial Activations . | . . . . Shielding Activations . | . . . . Robots Disrupted . | . . . . Combat Hostiles . | . . . . Robots Corrupted . | . . . . Combat Hostiles . | . . . . Parts Fried . | . . . . Impact Corruptions . | . . . . Robots Melted . | . . . . Combat Hostiles . | . . . . Parts Melted . | . . . . Heat Transferred 437 | . . . 437 Parts Sabotaged . | . . . . Parts Stolen . | . . . . Parts Stripped . | . . . . Power Chain Reactions 2 | . . . 2 Alert | -11 -10 -10 -8 ------- Run | Yrd Mat Sub Mat Maximum Alert Level . | . . . . Low Security (%) 100 | 100 100 . 100 Level 1 . | . . . . Level 2 . | . . . . Level 3 . | . . . . Level 4 . | . . . . Level 5 . | . . . . High Security . | . . . . Max Security . | . . . . Peak Influence 89 | 5 8 . 89 Initial . | . . . . Average 6 | . . . 27 Influence Increases 279 | 30 10 . 239 Destroy 0b10 Robot/C 160 | . . . 160 Destroy 0b10 Robot/NC 45 | 30 . . 15 Destroy Leader 22 | . . . 22 Successful Hack 7 | . 7 . . Destroy Structure 15 | . 3 . 12 Lose Combat Pursuer 30 | . . . 30 Influence Decreases 220 | 30 10 . 180 Time Decay 110 | 30 10 . 70 Lost Part 110 | . . . 110 Squads Dispatched 3 | . 2 . 1 Investigation 2 | . 2 . . Extermination . | . . . . Reinforcement 1 | . . . 1 Assault . | . . . . Garrison . | . . . . Intercept . | . . . . Searches Triggered . | . . . . Construction Impeded 1 | . . . 1 Haulers Reinforced . | . . . . Active Scanning Responses . | . . . . Cargo Convoy Interrupts . | . . . . Stealth | -11 -10 -10 -8 --------- Run | Yrd Mat Sub Mat Distress Signals 1 | . . . 1 Communications Jammed . | . . . . Distress Signals . | . . . . Times Spotted 17 | . 2 2 13 Peak Tracking Total 7 | . 1 2 7 Tactical Retreats 1 | . . . 1 Traps | -11 -10 -10 -8 ------- Run | Yrd Mat Sub Mat Traps Triggered 1 | . 1 . . Indirectly . | . . . . Trap Hack Attempts . | . . . . Triggered . | . . . . Disarmed . | . . . . Reprogrammed . | . . . . Reused . | . . . . Traps Extracted . | . . . . Installed . | . . . . Triggered . | . . . . Machines | -11 -10 -10 -8 ---------- Run | Yrd Mat Sub Mat Machines Disabled . | . . . . Max in Single Turn . | . . . . Machines Repaired . | . . . . Machines Dismantled . | . . . . Machines Sabotaged . | . . . . Overloaded Fab Kills . | . . . . Hacking | -11 -10 -10 -8 --------- Run | Yrd Mat Sub Mat Machines Accessed 4 | . 4 . . Terminals 3 | . 3 . . Fabricators . | . . . . Repair Stations . | . . . . Recycling Units 1 | . 1 . . Scanalyzers . | . . . . Garrison Access . | . . . . Total Hacks 13 | . 13 . . Successful 7 | . 7 . . Failed 6 | . 6 . . Catastrophic . | . . . . Database Lockouts . | . . . . Manual 8 | . 8 . . Terminals 12 | . 12 . . Fabricators . | . . . . Repair Stations . | . . . . Recycling Units 1 | . 1 . . Scanalyzers . | . . . . Garrison Access . | . . . . Terminal Hacks 3 | . 3 . . Robot Analysis 1 | . 1 . . Emergency Access Points 1 | . 1 . . Zone Layout 1 | . 1 . . Fabricator Hacks . | . . . . Repair Station Hacks . | . . . . Recycling Unit Hacks . | . . . . Scanalyzer . | . . . . Garrison Access Hacks . | . . . . Unauthorized Hacks 4 | . 4 . . Terminals 3 | . 3 . . Botnet 3 | . 3 . . Fabricators . | . . . . Repair Stations . | . . . . Recycling Units 1 | . 1 . . Reject 1 | . 1 . . Scanalyzers . | . . . . Garrison Access . | . . . . Data Cores Recovered . | . . . . Used . | . . . . Hacking Detections 3 | . 3 . . Full Trace Events 2 | . 2 . . Feedback Events . | . . . . Feedback Blocked . | . . . . Robot Schematics Acquired . | . . . . Robots Built . | . . . . Authchips . | . . . . Time . | . . . . Total Robot Build Rating . | . . . . Part Schematics Acquired . | . . . . Parts Built . | . . . . Authchips . | . . . . Time . | . . . . Total Part Build Rating . | . . . . Parts Repaired . | . . . . Time . | . . . . Parts Recycled . | . . . . Recycled Matter . | . . . . Retrieved Matter . | . . . . Retrieved Components . | . . . . Parts Scanalyzed . | . . . . Part Schematics Acquired . | . . . . Parts Damaged . | . . . . Bothacking | -11 -10 -10 -8 ------------ Run | Yrd Mat Sub Mat Used RIF Installer . | . . . . Robots Hacked . | . . . . Non-combat . | . . . . Combat . | . . . . Robot Hacks Applied . | . . . . Relay Couplers Released . | . . . . Fabnet Peak Effective % . | . . . . Robots Rewired . | . . . . Allies Hacked . | . . . . Hacks Repelled . | . . . . Allies | -11 -10 -10 -8 -------- Run | Yrd Mat Sub Mat Total Allies . | . . . . Largest Group . | . . . . Highest-Rated Group . | . . . . Highest-Rated Ally . | . . . . Total Orders . | . . . . Ally Attacks . | . . . . Total Damage . | . . . . Kills . | . . . . Allies Corrupted . | . . . . Allies Melted . | . . . . Intel | -11 -10 -10 -8 ------- Run | Yrd Mat Sub Mat Active Infowar (turns) 942 | 78 582 73 209 Terrain 299 | . 299 . . Seismic 643 | 78 283 73 209 Robot Analysis Total 1 | . 1 . . Derelict Logs Recovered 1 | . . 1 . Drone Launches . | . . . . Drone Recoveries . | . . . . Exploration | -11 -10 -10 -8 ------------- Run | Yrd Mat Sub Mat Turns Passed 1161 | 269 584 73 235 Spaces Moved 362 | 126 133 44 59 Core 19 | 6 . . 13 Treads 343 | 120 133 44 46 Legs . | . . . . Wheels . | . . . . Hover . | . . . . Flight . | . . . . Fastest Speed 50 | 50 160 160 100 Average Speed 157 | 154 160 160 156 Slowest Speed 160 | 160 160 160 160 Overloaded Moves . | . . . . Propulsion Burnouts . | . . . . Robots Hopped . | . . . . Potential Cave-ins 3 | . 3 . . Cave-ins Triggered . | . . . . Exploration Rate (%) 13 | 8 32 6 7 Regions Visited 3 Branch Regions 1 Pre-discovered Areas . | . . . . Known Exits Taken . | . . . . Unknown Exits Taken 3 | 1 1 1 . Scrap Searched . | . . . . Spaces Dug 6 | . 6 . . Terrain Destroyed 17 | . 6 . 11 Melee . | . . . . Projectile 6 | . 6 . . AOE 11 | . . . 11 Terrain Rammed . | . . . . Walls Destroyed . | . . . . Machines Disabled . | . . . . Actions | -11 -10 -10 -8 --------- Run | Yrd Mat Sub Mat Total 837 | 165 480 47 145 Wait 379 | . 333 4 42 Move 359 | 125 132 43 59 Hop . | . . . . Pick Up 18 | 13 1 . 4 Fast Attach . | . . . . Attach 13 | 7 . . 6 Detach . | . . . . Swap 7 | 1 6 . . Drop . | . . . . Fire 61 | 19 8 . 34 Melee . | . . . . Ram . | . . . . Kick . | . . . . Crush . | . . . . Escape Stasis . | . . . . Rewire . | . . . . Trap . | . . . . Miscellaneous . | . . . . Route ------- -11/Scrapyard -10/Materials -10/Subcaves -8/Materials (discovered 1 exit: Sto) History --------- Turn | Location | Event 21 | -11/Scrapyard | Discovered new exit (range 14) 270 | -11/Scrapyard | Entered Materials 309 | -10/Materials | Build established: Mutant 743 | -10/Materials | Discovered new exit (range 6) 854 | -10/Materials | Entered Subcaves 855 | -10/Subcaves | Approached by a straggling Scientist 899 | -10/Subcaves | Discovered new exit (range 14) 927 | -10/Subcaves | Entered Materials 927 | -8/Materials | Evolved 4 slots: Propulsion x1, Utility x2, Weapon x1 928 | -8/Materials | Identified exit to Storage 1134 | -8/Materials | Core integrity fell below 50% 1149 | -8/Materials | Core integrity fell below 20% 1162 | -8/Materials | Destroyed by G-47 Trooper with Particle Gun Last Messages --------------- 01140_ Y-45 Defender destroyed. 01140_ U-05 Engineer lays Concrete. 01141_ Imp. Terrain Scanner destroyed. 01142_ U-05 Engineer lays Concrete. 01142_ U-05 Engineer destroyed. 01142_ U-05 Engineer lays Concrete. 01144_ U-05 Engineer destroyed. 01144_ Chain reaction triggered in Lgt. Nuclear Core. 01144_ G-47 Trooper destroyed. 01147_ Acquired Imp. EM Shotgun. 01148_ Imp. EM Shotgun destroyed. 01149_ Acquired Faulty Imp. EM Shotgun. 01153_ K-01 Serf collects debris. 01154_ The unstable cave ceiling collapses. 01154_ Acquired Beam Rifle. 01155_ Imp. EM Shotgun destroyed. 01157_ K-01 Serf collects debris. 01160_ R-06 Scavenger collects Particle Gun. 01161_ K-01 Serf collects debris. Map ----- +----------------------------------------------------+ | ?????????????????????????????????????????????????? | | ?????????????????????????????????????????????????? | | ?????????????????????????????????????????????????? | | ?????????????????????????????????????????????????? | | ?????????????????????????????????????????????????? | | ?????????????????????????????????????????????????? | | ?????????????????????????????????????????????????? | | ?????????????????????????????????????????????????? | | ?????????????????????????? ??????????????????????? | | ?????????????????????????? ??????????????????????? | | ?????????????????????????? #?????????????????????? | | ?????????????????????????? #?????????????????????? | | ?????????????????????????? #?????????????????????? | | ????????????????????????## ##????????????????????? | | ????????????????????????# #????????????????????? | | ????????????????????????# #????????????????????? | | ????????????????????????# #????????????????????? | | ????????????????????????# #????????????????????? | | ????????????????????????# #????????????????????? | | ??????????????????????### ##???????????????????? | | ????????????????###???# # r #???????????????????? | | ???????##########T######!% #???????????????????? | | ???????? g k *=%*% #???????????????????? | | ?????????????# g !== = #???????????????????? | | ?????????????# g |%%] %[#???????????????????? | | ?????????????# ######!!@== #???????????????????? | | ?????????????# #????# #### #???????????????????? | | ?????????????# #########??##???????????????????? | | ?????????????# # """ ""??????????????????????? | | ?????????????# # """ """?????????????????????? | | ?????????????# [#= """ """ #???????????????????? | | ?????????????# =#= #???????????????????? | | ?????????????# %/% #???????????????????? | | ?????????????# !#[ ! / ???????????????? | | ?????????????# !# # #?????????????????? | | ?????????????# ########+####???????????????????? | | ?????????????# # #?????????????????????? | | ?????????????# %# """ #?????????????????????? | | ?????????????# # """"" #?????????????????????? | | ?????????????# + """"" #?????????????????????? | | ?????????????# # """"" #?????????????????????? | | ?????????????# # """ #?????????????????????? | | ?????????????# # #?????????????????????? | | ?????????????##### #?????????????????????? | | ?????????????????###########??>??????????????????? | | ?????????????????????????????????????????????????? | | ?????????????????????????????????????????????????? | | ?????????????????????????????????????????????????? | | ?????????????????????????????????????????????????? | | ?????????????????????????????????????????????????? | +----------------------------------------------------+ Best States ------------- Heat Dissipation 31 Energy Generation 10 Energy Capacity 250 Matter Stores 300 Matter Capacity 300 Sight Range 16 Terrain Scan Range 16 Terrain Scan Density 10 Evasion (%) 40 Recoil Reduction 2 Item Schematics ----------------- None Robot Schematics ------------------ None Fabricated ------------ Nothing Repaired ---------- Nothing Alien Tech Used ----------------- None Achievements -------------- None Challenges ------------ None Game ------ Seed SmartbombSigixNanoactuators Manual? 0 Play Time 00:11:21 Cumulative 34.0 hours Start 2025.08.07 @ 19:07:35 End 2025.08.07 @ 19:23:06 Sessions 1 Manual Loads 0 Difficulty Rogue Special Mode None Game No. 68 Rogue 65 Adventurer 3 Explorer 0 Win Type - Total 0 Types 0/0/0/0/0/0/0/0/0/0 Lore% 26 Gallery% 25 Achievement% 26 Wizard Run 0 Options --------- Layout 1 ASCII 0 Keyboard 0 Movement Mouse Keybinds 0 Fullscreen 1 Font 24/Smallcaps Map View 50x35 Zoom Use 0% Tactical HUD 1 Map Filters NONE Filters NONE Steam 1 RUN: 65850ad3-745d-4411-83cf-927a007a135b